fUSD/lending_fUSD_20250206
["ID","MTS","AMOUNT","RATE_DAILY","PERIOD"]
[351893243,1738829487456,-500.0,0.00020342,3]
[351893244,1738829487465,-500.0,0.00020342,3]
[351893245,1738829487475,-500.0,0.00020342,3]
[351893246,1738829487486,-625.62603167,0.00020342,3]
[351893247,1738829487496,-500.0,0.00020342,3]
[351893248,1738829487506,-500.0,0.00020342,3]
[351893249,1738829487515,-500.0,0.00020342,3]
[351893250,1738829487527,-500.0,0.00020342,3]
[351893251,1738829487538,-500.0,0.00020342,3]
[351893252,1738829487547,-500.0,0.00020342,2]
[351893253,1738829487557,-500.0,0.00020342,3]
[351893254,1738829487567,-226.44566115,0.00020342,3]
[351893255,1738829487577,-500.0,0.00020342,3]
[351893256,1738829487587,-500.0,0.00020342,3]
[351893257,1738829487596,-512.62,0.00020342,3]
[351893258,1738829487606,-500.0,0.00020342,3]
[351893259,1738829487616,-500.0,0.00020342,3]
[351893260,1738829487625,-500.0,0.00020342,3]
[351893261,1738829487635,-500.0,0.00020342,3]
[351893262,1738829487645,-500.0,0.00020342,3]
[351893263,1738829487654,-380.40530154,0.00020343,2]
[351893264,1738829487664,-1067.54523548,0.00020343,2]
[351893265,1738829487674,-256439.57863112,0.00020343,2]
[351893266,1738829487683,-2009.2476,0.00020343,2]
[351893267,1738829487692,-2000.0,0.00020343,2]
[351893268,1738829487702,-500.0,0.00020343,3]
[351893269,1738829487712,-500.0,0.00020343,3]
[351893270,1738829487721,-500.0,0.00020343,3]
[351893271,1738829487731,-500.0,0.00020343,3]
[351893272,1738829487740,-500.0,0.00020343,3]
[351893273,1738829487750,-500.0,0.00020343,3]
[351893274,1738829487759,-500.0,0.00020343,3]
[351893275,1738829487769,-203.33,0.00020343,3]
[351893276,1738829487778,-500.0,0.00020343,3]
[351893277,1738829487788,-500.0,0.00020343,3]
[351893278,1738829487798,-346.89,0.00020343,3]
[351893279,1738829487807,-500.0,0.00020343,3]
[351893280,1738829487816,-500.0,0.00020343,3]
[351893281,1738829487826,-516.41,0.00020343,3]
[351893282,1738829487835,-500.0,0.00020343,3]
[351893283,1738829487845,-326.42,0.00020343,3]
[351893284,1738829487855,-500.0,0.00020343,3]
[351893285,1738829487865,-273.75714301,0.00020343,3]
[351893286,1738829487875,-500.0,0.00020343,3]
[351893287,1738829487884,-500.0,0.00020343,3]
[351893288,1738829487894,-500.0,0.00020343,3]
[351893289,1738829487903,-500.0,0.00020343,3]
[351893290,1738829487913,-500.0,0.00020343,3]
[351893291,1738829487923,-500.0,0.00020343,3]
[351893292,1738829487934,-500.0,0.00020343,3]
[351893293,1738829487943,-500.0,0.00020343,3]
[351893294,1738829487954,-500.0,0.00020343,3]
[351893295,1738829487963,-500.0,0.00020343,3]
[351893296,1738829487974,-151.0,0.00020343,2]
[351893297,1738829487983,-509.14008062,0.00020343,3]
[351893298,1738829487993,-500.0,0.00020343,3]
[351893299,1738829488003,-500.0,0.00020343,3]
[351893300,1738829488013,-500.0,0.00020343,3]
[351893301,1738829488023,-232.83473385,0.00020343,3]
[351893302,1738829488033,-500.0,0.00020343,3]
[351893303,1738829488043,-500.0,0.00020343,3]
[351893304,1738829488052,-500.0,0.00020343,3]
[351893305,1738829488062,-500.0,0.00020343,3]
[351893306,1738829488071,-500.0,0.00020343,3]
[351893307,1738829488081,-500.0,0.00020343,3]
[351893308,1738829488090,-500.0,0.00020343,3]
[351893309,1738829488100,-500.0,0.00020343,3]
[351893310,1738829488109,-500.0,0.00020343,3]
[351893311,1738829488118,-500.0,0.00020343,3]
[351893312,1738829488128,-500.0,0.00020343,3]
[351893313,1738829488137,-500.0,0.00020343,3]
[351893314,1738829488147,-500.0,0.00020343,3]
[351893315,1738829488156,-500.0,0.00020343,3]
[351893316,1738829488165,-869.44,0.00020343,3]
[351893317,1738829488174,-500.0,0.00020343,3]
[351893318,1738829488184,-624.34,0.00020343,3]
[351893319,1738829488194,-500.0,0.00020343,3]
[351893320,1738829488204,-633.94,0.00020343,3]
[351893321,1738829488214,-333.6956382,0.00020343,3]
[351893322,1738829488223,-557.36,0.00020343,3]
[351893323,1738829488232,-500.0,0.00020343,3]
[351893324,1738829488242,-163.281876,0.00020343,2]
[351893325,1738829488251,-163.281876,0.00020343,2]
[351893326,1738829488261,-1688.38,0.00020343,3]
[351893327,1738829488270,-500.0,0.00020343,3]
[351893328,1738829488279,-500.0,0.00020343,3]
[351893329,1738829488288,-500.0,0.00020343,3]
[351893330,1738829488298,-1045.73,0.00020343,3]
[351893331,1738829488307,-500.0,0.00020343,3]
[351893332,1738829488317,-590.81837543,0.00020343,3]
[351893333,1738829488326,-500.0,0.00020343,3]
[351893334,1738829488335,-500.0,0.00020343,3]
[351893335,1738829488345,-623.82313193,0.00020343,3]
[351893336,1738829488355,-500.0,0.00020343,3]
[351893337,1738829488364,-500.0,0.00020343,3]
[351893338,1738829488373,-500.0,0.00020343,3]
[351893339,1738829488383,-500.0,0.00020343,3]
[351893340,1738829488392,-500.0,0.00020343,3]
[351893341,1738829488402,-500.0,0.00020343,3]
[351893342,1738829488411,-500.0,0.00020343,3]
[351893343,1738829488424,-500.0,0.00020343,3]
[351893344,1738829488435,-551.38,0.00020343,3]
[351893345,1738829488444,-1776.6,0.00020343,3]
[351893346,1738829488455,-500.0,0.00020343,3]
[351893347,1738829488464,-500.0,0.00020343,3]
[351893348,1738829488474,-500.0,0.00020343,3]
[351893349,1738829488483,-500.0,0.00020343,3]
[351893350,1738829488494,-500.0,0.00020343,3]
[351893351,1738829488609,-500.0,0.00020343,3]
[351893352,1738829488619,-172.29,0.00020343,3]
[351893353,1738829488628,-500.0,0.00020343,3]
[351893354,1738829488637,-500.0,0.00020343,3]
[351893355,1738829488646,-500.0,0.00020343,3]
[351893356,1738829488656,-500.0,0.00020343,3]
[351893357,1738829488666,-500.0,0.00020343,3]
[351893358,1738829488675,-506.26,0.00020343,3]
[351893359,1738829488685,-500.0,0.00020343,3]
[351893360,1738829488694,-500.0,0.00020343,3]
[351893361,1738829488703,-500.0,0.00020343,3]
[351893362,1738829488712,-500.0,0.00020343,3]
[351893363,1738829488720,-500.0,0.00020343,3]
[351893364,1738829488729,-500.0,0.00020343,3]
[351893365,1738829488739,-633.44,0.00020343,3]
[351893366,1738829488748,-500.0,0.00020343,3]
[351893367,1738829488757,-500.0,0.00020343,3]
[351893368,1738829488767,-500.0,0.00020343,3]
[351893369,1738829488776,-500.0,0.00020343,3]
[351893370,1738829488785,-500.0,0.00020343,3]
[351893371,1738829488794,-391.73,0.00020343,3]
[351893372,1738829488804,-500.0,0.00020343,3]
[351893373,1738829488814,-500.0,0.00020343,3]
[351893374,1738829488823,-500.0,0.00020343,3]
[351893375,1738829488832,-500.0,0.00020343,3]
[351893376,1738829488842,-500.0,0.00020343,3]
[351893377,1738829488851,-500.0,0.00020343,3]
[351893378,1738829488861,-500.0,0.00020343,3]
[351893379,1738829488870,-500.0,0.00020343,3]
[351893380,1738829488879,-500.0,0.00020343,3]
[351893381,1738829488889,-500.0,0.00020343,3]
[351893382,1738829488898,-500.0,0.00020343,3]
[351893383,1738829488907,-500.0,0.00020343,3]
[351893384,1738829488917,-500.0,0.00020343,3]
[351893385,1738829488927,-500.0,0.00020343,3]
[351893386,1738829488937,-500.0,0.00020343,3]
[351893387,1738829488946,-500.0,0.00020343,3]
[351893388,1738829488956,-468.77433059,0.00020343,3]
[351893389,1738829488966,-500.0,0.00020343,3]
[351893390,1738829488976,-500.0,0.00020343,3]
[351893391,1738829488986,-500.0,0.00020343,3]
[351893392,1738829488995,-500.0,0.00020343,3]
[351893393,1738829489004,-500.0,0.00020343,3]
[351893394,1738829489014,-500.0,0.00020343,3]
[351893395,1738829489023,-349.94,0.00020343,3]
[351893396,1738829489033,-500.0,0.00020343,3]
[351893397,1738829489043,-410.86676519,0.00020343,3]
[351893398,1738829489052,-500.0,0.00020343,3]
[351893399,1738829489062,-500.0,0.00020343,3]
[351893400,1738829489071,-500.0,0.00020343,3]
[351893401,1738829489080,-500.0,0.00020343,3]
[351893402,1738829489089,-500.0,0.00020343,3]
[351893403,1738829489098,-500.0,0.00020343,3]
[351893404,1738829489107,-500.0,0.00020343,3]
[351893405,1738829489117,-500.0,0.00020343,3]
[351893406,1738829489126,-500.0,0.00020343,3]
[351893407,1738829489135,-500.0,0.00020343,3]
[351893408,1738829489144,-500.0,0.00020343,3]
[351893409,1738829489153,-349.14,0.00020343,3]
[351893410,1738829489162,-500.0,0.00020343,3]
[351893411,1738829489172,-500.0,0.00020343,3]
[351893412,1738829489181,-500.0,0.00020343,3]
[351893413,1738829489191,-500.0,0.00020343,3]
[351893414,1738829489200,-500.0,0.00020343,3]
[351893415,1738829489210,-500.0,0.00020343,3]
[351893416,1738829489219,-500.0,0.00020343,3]
[351893417,1738829489229,-500.0,0.00020343,3]
[351893418,1738829489238,-500.0,0.00020343,3]
[351893419,1738829489247,-500.0,0.00020343,3]
[351893420,1738829489257,-291.39997039,0.00020343,3]
[351893421,1738829489268,-402.37228413,0.00020343,3]
[351893422,1738829489278,-170.6,0.00020343,3]
[351893423,1738829489287,-500.0,0.00020343,2]
[351893424,1738829489297,-500.0,0.00020343,2]
[351893425,1738829489305,-500.0,0.00020343,2]
[351893426,1738829489315,-500.0,0.00020343,2]
[351893427,1738829489324,-500.0,0.00020343,3]
[351893428,1738829489332,-610.94,0.00020343,2]
[351893429,1738829489343,-500.0,0.00020343,3]
[351893430,1738829489353,-500.0,0.00020343,3]
[351893431,1738829489363,-500.0,0.00020343,3]
[351893432,1738829489373,-402.2,0.00020343,3]
[351893433,1738829489382,-500.0,0.00020343,3]
[351893434,1738829489391,-500.0,0.00020343,3]
[351893435,1738829489400,-627.51740384,0.00020343,3]
[351893436,1738829489409,-512.62,0.00020343,3]
[351893437,1738829489424,-512.62,0.00020343,3]
[351893438,1738829489436,-512.62,0.00020343,3]
[351893439,1738829489445,-512.62,0.00020343,3]
[351893440,1738829489455,-512.62,0.00020343,3]
[351893441,1738829489465,-512.62,0.00020343,3]
[351893442,1738829489474,-512.62,0.00020343,3]
[351893443,1738829489483,-512.62,0.00020343,3]
[351893444,1738829489494,-512.62,0.00020343,3]
[351893445,1738829489504,-512.62,0.00020343,3]
[351893446,1738829489513,-512.75591283,0.00020343,3]
[351893447,1738829489523,-500.0,0.00020343,3]
[351893448,1738829489533,-500.0,0.00020343,3]
[351893449,1738829489542,-500.0,0.00020343,3]
[351893450,1738829489552,-500.0,0.00020343,3]
[351893451,1738829489561,-577.57840359,0.00020343,3]
[351893452,1738829489571,-500.0,0.00020343,3]
[351893453,1738829489582,-500.0,0.00020343,3]
[351893454,1738829489592,-500.0,0.00020343,3]
[351893455,1738829489601,-500.0,0.00020343,3]
[351893456,1738829489611,-151.0,0.00020344,2]
[351893457,1738829489620,-151.0,0.00020344,2]
[351893458,1738829489630,-151.0,0.00020344,2]
[351893459,1738829489639,-151.0,0.00020344,2]
[351893460,1738829489649,-151.0,0.00020344,2]
[351893461,1738829489659,-151.0,0.00020344,2]
[351893462,1738829489668,-313.55364478,0.00020344,3]
[351893463,1738829489678,-500.0,0.00020344,3]
[351893464,1738829489689,-625.8,0.00020344,3]
[351893465,1738829489698,-500.0,0.00020344,3]
[351893466,1738829489707,-320.82806469,0.00020344,3]
[351893467,1738829489717,-500.0,0.00020344,3]
[351893468,1738829489726,-624.27498229,0.00020344,3]
[351893469,1738829489736,-518.98,0.00020344,3]
[351893470,1738829489746,-518.98,0.00020344,3]
[351893471,1738829489756,-518.98,0.00020344,3]
[351893472,1738829489765,-518.98,0.00020344,3]
[351893473,1738829489775,-518.98,0.00020344,3]
[351893474,1738829489784,-518.98,0.00020344,3]
[351893475,1738829489794,-518.98,0.00020344,3]
[351893476,1738829489803,-518.98,0.00020344,3]
[351893477,1738829489812,-518.98,0.00020344,3]
[351893478,1738829489822,-518.98,0.00020344,3]
[351893479,1738829489832,-518.98,0.00020344,3]
[351893480,1738829489842,-518.98,0.00020344,3]
[351893481,1738829489851,-518.98,0.00020344,3]
[351893482,1738829489861,-519.19,0.00020344,3]
[351893483,1738829489871,-444.53,0.00020344,3]
[351893484,1738829489881,-524.39,0.00020344,3]
[351893485,1738829489891,-500.0,0.00020344,3]
[351893486,1738829489900,-500.0,0.00020344,3]
[351893487,1738829489909,-414.70010648,0.00020344,3]
[351893488,1738829489919,-610.31691118,0.00020344,3]
[351893489,1738829489928,-500.0,0.00020344,3]
[351893490,1738829489938,-500.0,0.00020344,3]
[351893491,1738829489948,-500.0,0.00020344,3]
[351893492,1738829489957,-175.91214114,0.00020344,3]
[351893493,1738829489967,-500.0,0.00020344,3]
[351893494,1738829489976,-388.78,0.00020344,3]
[351893495,1738829489985,-500.0,0.00020344,3]
[351893496,1738829489995,-221.21463431,0.00020344,3]
[351893497,1738829490004,-1124.862584,0.00020344,2]
[351893498,1738829490013,-500.0,0.00020344,3]
[351893499,1738829490023,-500.0,0.00020344,3]
[351893500,1738829490032,-500.0,0.00020344,3]
[351893501,1738829490041,-500.0,0.00020344,3]
[351893502,1738829490051,-500.0,0.00020344,3]
[351893503,1738829490060,-500.0,0.00020344,3]
[351893504,1738829490069,-536.14,0.00020344,3]
[351893505,1738829490078,-500.0,0.00020344,3]
[351893506,1738829490088,-489.07200126,0.00020344,3]
[351893507,1738829490097,-3384.8484195,0.00020344,2]
[351893508,1738829490107,-500.0,0.00020344,3]
[351893509,1738829490116,-268.13,0.00020344,3]
[351893510,1738829490126,-3095.7632743,0.00020344,2]
[351893511,1738829490136,-260.1084,0.00020344,2]
[351893512,1738829490145,-500.0,0.00020344,3]
[351893513,1738829490156,-500.0,0.00020344,3]
[351893514,1738829490166,-500.0,0.00020344,3]
[351893515,1738829490177,-500.0,0.00020344,3]
[351893516,1738829490188,-352.86,0.00020344,3]
[351893517,1738829490198,-500.0,0.00020344,3]
[351893518,1738829490209,-500.0,0.00020344,3]
[351893519,1738829490218,-393.96,0.00020344,3]
[351893520,1738829490229,-343.09,0.00020344,3]
[351893521,1738829490238,-500.0,0.00020344,3]
[351893522,1738829490248,-500.0,0.00020344,3]
[351893523,1738829490259,-500.0,0.00020344,3]
[351893524,1738829490269,-500.0,0.00020344,3]
[351893525,1738829490279,-500.0,0.00020344,3]
[351893526,1738829490289,-500.0,0.00020344,3]
[351893527,1738829490299,-500.0,0.00020344,3]
[351893528,1738829490308,-541.89,0.00020344,3]
[351893529,1738829490318,-500.0,0.00020344,3]
[351893530,1738829490327,-500.0,0.00020344,3]
[351893531,1738829490337,-168.02350766,0.00020344,3]
[351893532,1738829490347,-500.0,0.00020344,3]
[351893533,1738829490357,-500.0,0.00020344,3]
[351893534,1738829490367,-500.0,0.00020344,3]
[351893535,1738829490494,-500.0,0.00020344,3]
[351893536,1738829490504,-500.0,0.00020344,3]
[351893537,1738829490514,-520.66,0.00020344,3]
[351893538,1738829490523,-500.0,0.00020344,3]
[351893539,1738829490533,-326.31,0.00020344,3]
[351893540,1738829490542,-500.0,0.00020344,3]
[351893541,1738829490552,-500.0,0.00020344,3]
[351893542,1738829490561,-869.44,0.00020344,3]
[351893543,1738829490572,-500.0,0.00020344,3]
[351893544,1738829490582,-869.44,0.00020344,3]
[351893545,1738829490591,-375.17932713,0.00020344,3]
[351893546,1738829490601,-869.44,0.00020344,3]
[351893547,1738829490611,-869.44,0.00020344,3]
[351893548,1738829490620,-869.44,0.00020344,3]
[351893549,1738829490630,-869.44,0.00020344,3]
[351893550,1738829490639,-869.44,0.00020344,3]
[351893551,1738829490649,-869.44,0.00020344,3]
[351893552,1738829490658,-869.44,0.00020344,3]
[351893553,1738829490668,-869.44,0.00020344,3]
[351893554,1738829490678,-869.54757735,0.00020344,3]
[351893555,1738829490689,-500.0,0.00020344,3]
[351893556,1738829490698,-632.31950132,0.00020344,3]
[351893557,1738829490708,-500.0,0.00020344,3]
[351893558,1738829490718,-162.42,0.00020344,3]
[351893559,1738829490728,-1350.12,0.00020344,3]
[351893560,1738829490738,-1350.12,0.00020344,3]
[351893561,1738829490748,-1350.12,0.00020344,3]
[351893562,1738829490757,-1350.12,0.00020344,3]
[351893563,1738829490767,-1350.12,0.00020344,3]
[351893564,1738829490777,-1350.12,0.00020344,3]
[351893565,1738829490787,-1350.12,0.00020344,3]
[351893566,1738829490796,-1350.12,0.00020344,3]
[351893567,1738829490805,-1350.12,0.00020344,3]
[351893568,1738829490815,-342.11,0.00020344,3]
[351893569,1738829490825,-4054.4412366,0.00020344,2]
[351893570,1738829490835,-1350.12,0.00020344,3]
[351893571,1738829490845,-1350.12,0.00020344,3]
[351893572,1738829490855,-1350.12,0.00020344,3]
[351893573,1738829490865,-1350.12,0.00020344,3]
[351893574,1738829490874,-1350.35,0.00020344,3]
[351893575,1738829490884,-1688.38,0.00020344,3]
[351893576,1738829490894,-383.54800922,0.00020344,3]
[351893577,1738829490903,-1688.38,0.00020344,3]
[351893578,1738829490913,-1688.38,0.00020344,3]
[351893579,1738829490922,-1688.38,0.00020344,3]
[351893580,1738829490932,-1688.38,0.00020344,3]
[351893581,1738829490942,-1688.38,0.00020344,3]
[351893582,1738829490952,-1688.38,0.00020344,3]
[351893583,1738829490961,-1688.38,0.00020344,3]
[351893584,1738829490971,-1688.38,0.00020344,3]
[351893585,1738829490981,-1688.38,0.00020344,3]
[351893586,1738829490990,-1688.46,0.00020344,3]
[351893587,1738829491000,-185.40752828,0.00020344,3]
[351893588,1738829491010,-500.0,0.00020344,3]
[351893589,1738829491020,-500.0,0.00020344,3]
[351893590,1738829491029,-487.39600715,0.00020344,3]
[351893591,1738829491038,-1045.73,0.00020344,3]
[351893592,1738829491048,-1045.73,0.00020344,3]
[351893593,1738829491058,-500.0,0.00020344,3]
[351893594,1738829491067,-1045.73,0.00020344,3]
[351893595,1738829491078,-500.0,0.00020344,3]
[351893596,1738829491088,-1045.73,0.00020344,3]
[351893597,1738829491098,-500.0,0.00020344,3]
[351893598,1738829491108,-1045.73,0.00020344,3]
[351893599,1738829491118,-1045.73,0.00020344,3]
[351893600,1738829491128,-1045.73,0.00020344,3]
[351893601,1738829491137,-566.84,0.00020344,3]
[351893602,1738829491147,-1045.73,0.00020344,3]
[351893603,1738829491157,-1045.73,0.00020344,3]
[351893604,1738829491167,-1045.73,0.00020344,3]
[351893605,1738829491177,-1045.92724199,0.00020344,3]
[351893606,1738829491187,-1776.6,0.00020344,3]
[351893607,1738829491197,-1776.6,0.00020344,3]
[351893608,1738829491207,-1776.6,0.00020344,3]
[351893609,1738829491216,-1776.6,0.00020344,3]
[351893610,1738829491226,-1776.6,0.00020344,3]
[351893611,1738829491235,-1776.6,0.00020344,3]
[351893612,1738829491244,-1776.6,0.00020344,3]
[351893613,1738829491254,-1776.6,0.00020344,3]
[351893614,1738829491263,-1776.6,0.00020344,3]
[351893615,1738829491273,-1776.6,0.00020344,3]
[351893616,1738829491283,-1776.61913753,0.00020344,3]
[351893617,1738829491293,-500.0,0.00020344,3]
[351893618,1738829491303,-461.49,0.00020344,3]
[351893619,1738829491313,-524.6052055,0.00020344,2]
[351893620,1738829491324,-278.778117,0.00020344,2]
[351893621,1738829491337,-278.778117,0.00020344,2]
[351893622,1738829491357,-617.96,0.00020344,3]
[351893623,1738829491374,-617.96,0.00020344,3]
[351893624,1738829491392,-617.96,0.00020344,3]
[351893625,1738829491410,-617.96,0.00020344,3]
[351893626,1738829491429,-617.96,0.00020344,3]
[351893627,1738829491448,-617.96,0.00020344,3]
[351893628,1738829491468,-617.96,0.00020344,3]
[351893629,1738829491487,-617.96,0.00020344,3]
[351893630,1738829491508,-617.96,0.00020344,3]
[351893631,1738829491525,-617.96,0.00020344,3]
[351893632,1738829491543,-617.96,0.00020344,3]
[351893633,1738829491556,-617.96,0.00020344,3]
[351893634,1738829491575,-617.96,0.00020344,3]
[351893635,1738829491588,-617.99024454,0.00020344,3]
[351893636,1738829491606,-248.36,0.00020344,3]
[351893637,1738829491619,-863.19,0.00020344,3]
[351893638,1738829491636,-863.19,0.00020344,3]
[351893639,1738829491651,-863.19,0.00020344,3]
[351893640,1738829491667,-863.19,0.00020344,3]
[351893641,1738829491682,-863.19,0.00020344,3]
[351893642,1738829491697,-863.19,0.00020344,3]
[351893643,1738829491711,-863.19,0.00020344,3]
[351893644,1738829491726,-863.19,0.00020344,3]
[351893645,1738829491741,-863.19,0.00020344,3]
[351893646,1738829491756,-863.19,0.00020344,3]
[351893647,1738829491771,-863.19,0.00020344,3]
[351893648,1738829491786,-863.19,0.00020344,3]
[351893649,1738829491801,-863.19,0.00020344,3]
[351893650,1738829491815,-863.42837588,0.00020344,3]
[351893651,1738829491830,-534.1,0.00020344,3]
[351893652,1738829491844,-534.1,0.00020344,3]
[351893653,1738829491859,-534.1,0.00020344,3]
[351893654,1738829491873,-534.1,0.00020344,3]
[351893655,1738829491887,-534.1,0.00020344,3]
[351893656,1738829491902,-534.1,0.00020344,3]
[351893657,1738829491917,-534.1,0.00020344,3]
[351893658,1738829491931,-534.1,0.00020344,3]
[351893659,1738829491946,-534.1,0.00020344,3]
[351893660,1738829491961,-534.1,0.00020344,3]
[351893661,1738829491976,-534.1,0.00020344,3]
[351893662,1738829491991,-534.1,0.00020344,3]
[351893663,1738829492007,-534.1,0.00020344,3]
[351893664,1738829492022,-534.23711853,0.00020344,3]
[351893665,1738829492037,-3330.6711605,0.00020344,2]
[351893666,1738829492054,-151.0,0.00020344,2]
[351893667,1738829492068,-151.0,0.00020344,2]
[351893668,1738829492082,-151.0,0.00020344,2]
[351893669,1738829492096,-151.696275,0.00020344,2]
[351893670,1738829492112,-3572.82227,0.00020344,2]
[351893671,1738829492127,-3572.82227,0.00020344,2]
[351893672,1738829492142,-3572.82227,0.00020344,2]
[351893673,1738829492158,-3572.82227,0.00020344,2]
[351893674,1738829492172,-151.0,0.00020344,2]
[351893675,1738829492187,-151.0,0.00020344,2]
[351893676,1738829492202,-151.0,0.00020344,2]
[351893677,1738829492218,-151.0,0.00020344,2]
[351893678,1738829492233,-456.08,0.00020344,3]
[351893679,1738829492248,-3572.82227,0.00020344,2]
[351893680,1738829492264,-3572.82227,0.00020344,2]
[351893681,1738829492279,-3572.82227,0.00020344,2]
[351893682,1738829492294,-3572.82227,0.00020344,2]
[351893683,1738829492309,-189.597148,0.00020344,2]
[351893684,1738829492323,-500.0,0.00020344,3]
[351893685,1738829492339,-500.0,0.00020344,3]
[351893686,1738829492354,-500.0,0.00020344,3]
[351893687,1738829492370,-485.66,0.00020344,3]
[351893688,1738829492385,-500.0,0.00020344,3]
[351893689,1738829492400,-649.16626248,0.00020344,3]
[351893690,1738829492415,-41421.21810272,0.00020344,30]
[351893691,1738829492431,-1818.74870361,0.00020344,2]
[351893692,1738829492449,-3211.49609629,0.00020344,2]
[351893693,1738829492464,-173.65455112,0.00020344,2]
[351893694,1738829492478,-152.81188409,0.00020344,2]
[351893695,1738829492495,-60991.8876754,0.00020344,10]
[351893696,1738829492509,-10562.939551,0.00020344,15]
[351893697,1738829492525,-7016.27731878,0.00020344,2]
[351893698,1738829492539,-51048.49993275,0.00020344,7]
[351893699,1738829492554,-550.0,0.00020344,2]
[351893700,1738829492568,-1452.01030672,0.00020344,2]
[351893701,1738829492582,-998.13374939,0.00020344,2]
[351893702,1738829492596,-1022.18585864,0.00020344,7]
[351893703,1738829492611,-945.2357834,0.00020344,2]
[351893704,1738829492625,-10599.82809332,0.00020344,2]
[351893705,1738829492805,-163923.57968678,0.00020344,2]
[351893706,1738829492815,-4630.88834199,0.00020344,7]
[351893707,1738829492824,-557.59612306,0.00020344,2]
[351893708,1738829492833,-150.0,0.00020344,2]
[351893709,1738829492843,-7697.69819845,0.00020344,2]
[351893710,1738829492852,-227.26853332,0.00020344,30]
[351893711,1738829492862,-601.10574381,0.00020344,2]
[351893712,1738829492871,-620.12361775,0.00020344,2]
[351893713,1738829492881,-216.01866469,0.00020344,5]
[351893714,1738829492890,-212.58271595,0.00020344,2]
[351893715,1738829492900,-28821.28438475,0.00020344,2]
[351893716,1738829492909,-881026.07223799,0.00020344,60]
[351893717,1738829492919,-3506.70051494,0.00020344,90]
[351893718,1738829492928,-56151.08003307,0.00020344,2]
[351893719,1738829492939,-171.20987586,0.00020344,91]
[351893720,1738829492949,-1419120.36087727,0.00020344,30]
[351893721,1738829493790,-500.0,0.0002,3]
[351893722,1738829493800,-1477.22,0.00020344,30]
[351893723,1738829493821,-500.0,0.0002,3]
[351893724,1738829493832,-500.0,0.00020343,3]
[351893725,1738829493843,-1014.65399562,0.00020344,30]
[351893726,1738829493854,-1163.10000005,0.00020344,30]
[351893727,1738829493866,-441.93,0.00020344,30]
[351893728,1738829493988,-611.50791983,0.0002,3]
[351893729,1738829494005,-21.79208017,0.0002,3]
[351893730,1738829494015,-500.0,0.0002,3]
[351893731,1738829494025,-581.34537249,0.0002,3]
[351893732,1738829494035,-182.22,0.0002,3]
[351893733,1738829494045,-500.0,0.0002,3]
[351893734,1738829494055,-500.0,0.0002,3]
[351893735,1738829494065,-500.0,0.0002,3]
[351893736,1738829494075,-13.14736909,0.0002,3]
[351893737,1738829494087,-419.22027429,0.0002,3]
[351893738,1738829494099,-67.63235662,0.0002,3]
[351893739,1738829494110,-633.3,0.00020341,3]
[351893740,1738829494120,-633.3,0.00020342,3]
[351893741,1738829494130,-534.49,0.00020343,3]
[351893742,1738829494139,-633.3,0.00020343,3]